fUSD/lending_fUSD_20240804
["ID","MTS","AMOUNT","RATE_DAILY","PERIOD"]
[334091151,1722759042153,-500.0,0.000199,2]
[334091154,1722759042164,-500.0,0.000199,2]
[334091156,1722759042174,-500.0,0.000199,2]
[334091157,1722759042183,-500.0,0.000199,2]
[334091159,1722759042192,-500.0,0.000199,2]
[334091161,1722759042202,-500.0,0.000199,2]
[334091163,1722759042211,-500.0,0.000199,2]
[334091165,1722759042220,-500.0,0.000199,2]
[334091167,1722759042230,-500.0,0.000199,2]
[334091169,1722759042239,-500.0,0.000199,2]
[334091171,1722759042248,-500.0,0.000199,2]
[334091173,1722759042258,-500.0,0.000199,2]
[334091175,1722759042267,-500.0,0.000199,2]
[334091177,1722759042276,-500.0,0.000199,2]
[334091179,1722759042286,-500.0,0.000199,2]
[334091181,1722759042295,-500.0,0.000199,2]
[334091183,1722759042304,-500.0,0.000199,2]
[334091185,1722759042313,-500.0,0.000199,2]
[334091187,1722759042322,-500.0,0.000199,2]
[334091188,1722759042332,-500.0,0.000199,2]
[334091189,1722759042341,-500.0,0.000199,2]
[334091190,1722759042350,-500.0,0.000199,2]
[334091191,1722759042359,-500.0,0.000199,2]
[334091192,1722759042368,-500.0,0.000199,2]
[334091193,1722759042378,-500.0,0.000199,2]
[334091194,1722759042387,-500.0,0.000199,2]
[334091195,1722759042396,-500.0,0.000199,2]
[334091196,1722759042405,-500.0,0.000199,2]
[334091197,1722759042414,-500.0,0.000199,2]
[334091198,1722759042424,-500.0,0.000199,2]
[334091199,1722759042433,-500.0,0.000199,2]
[334091200,1722759042443,-500.0,0.000199,2]
[334091201,1722759042452,-500.0,0.000199,2]
[334091202,1722759042462,-500.0,0.000199,2]
[334091203,1722759042472,-500.0,0.000199,2]
[334091204,1722759042482,-500.0,0.000199,2]
[334091205,1722759042491,-500.0,0.000199,2]
[334091206,1722759042501,-500.0,0.000199,2]
[334091207,1722759042511,-500.0,0.000199,2]
[334091208,1722759042521,-500.0,0.000199,2]
[334091209,1722759042531,-500.0,0.000199,2]
[334091210,1722759042540,-500.0,0.000199,2]
[334091211,1722759042550,-500.0,0.000199,2]
[334091212,1722759042560,-500.0,0.000199,2]
[334091213,1722759042570,-500.0,0.000199,2]
[334091214,1722759042579,-500.0,0.000199,2]
[334091215,1722759042589,-500.0,0.000199,2]
[334091216,1722759042598,-500.0,0.000199,2]
[334091217,1722759042607,-500.0,0.000199,2]
[334091218,1722759042617,-500.0,0.000199,2]
[334091219,1722759042626,-500.0,0.000199,2]
[334091220,1722759042636,-500.0,0.000199,2]
[334091221,1722759042645,-500.0,0.000199,2]
[334091222,1722759042655,-500.0,0.000199,2]
[334091223,1722759042664,-500.0,0.000199,2]
[334091224,1722759042673,-500.0,0.000199,2]
[334091225,1722759042683,-500.0,0.000199,2]
[334091226,1722759042692,-500.0,0.000199,2]
[334091227,1722759042702,-500.0,0.000199,2]
[334091228,1722759042711,-500.0,0.000199,2]
[334091229,1722759042720,-500.0,0.000199,2]
[334091230,1722759042729,-500.0,0.000199,2]
[334091231,1722759042738,-500.0,0.000199,2]
[334091232,1722759042748,-500.0,0.000199,2]
[334091233,1722759042757,-500.0,0.000199,2]
[334091234,1722759042766,-500.0,0.000199,2]
[334091235,1722759042776,-500.0,0.000199,2]
[334091236,1722759042785,-500.0,0.000199,2]
[334091237,1722759042795,-500.0,0.000199,2]
[334091238,1722759042804,-500.0,0.000199,2]
[334091239,1722759042813,-500.0,0.000199,2]
[334091240,1722759042823,-500.0,0.000199,2]
[334091241,1722759042833,-500.0,0.000199,2]
[334091242,1722759042842,-500.0,0.000199,2]
[334091243,1722759042853,-500.0,0.000199,2]
[334091244,1722759042863,-500.0,0.000199,2]
[334091245,1722759042872,-500.0,0.000199,2]
[334091246,1722759042882,-500.0,0.000199,2]
[334091247,1722759042892,-500.0,0.000199,2]
[334091248,1722759042902,-500.0,0.000199,2]
[334091249,1722759042913,-500.0,0.000199,2]
[334091250,1722759042925,-500.0,0.000199,2]
[334091251,1722759042938,-500.0,0.000199,2]
[334091252,1722759042948,-500.0,0.000199,2]
[334091253,1722759042958,-500.0,0.000199,2]
[334091254,1722759042970,-500.0,0.000199,2]
[334091255,1722759042980,-500.0,0.000199,2]
[334091256,1722759042989,-500.0,0.000199,2]
[334091257,1722759042999,-500.0,0.000199,2]
[334091258,1722759043010,-500.0,0.000199,2]
[334091259,1722759043020,-500.0,0.000199,2]
[334091260,1722759043029,-500.0,0.000199,2]
[334091261,1722759043039,-500.0,0.000199,2]
[334091262,1722759043048,-500.0,0.000199,2]
[334091263,1722759043058,-500.0,0.000199,2]
[334091264,1722759043068,-500.0,0.000199,2]
[334091265,1722759043078,-500.0,0.000199,2]
[334091266,1722759043088,-500.0,0.000199,2]
[334091267,1722759043097,-500.0,0.000199,2]
[334091268,1722759043107,-500.0,0.000199,2]
[334091269,1722759043116,-500.0,0.000199,2]
[334091271,1722759043126,-500.0,0.000199,2]
[334091272,1722759043136,-500.0,0.000199,2]
[334091273,1722759043145,-500.0,0.000199,2]
[334091274,1722759043155,-500.0,0.000199,2]
[334091275,1722759043165,-500.0,0.000199,2]
[334091276,1722759043176,-500.0,0.000199,2]
[334091277,1722759043186,-500.0,0.000199,2]
[334091278,1722759043195,-500.0,0.000199,2]
[334091279,1722759043205,-500.0,0.000199,2]
[334091280,1722759043216,-500.0,0.000199,2]
[334091281,1722759043226,-500.0,0.000199,2]
[334091282,1722759043236,-500.0,0.000199,2]
[334091283,1722759043246,-500.0,0.000199,2]
[334091284,1722759043255,-500.0,0.000199,2]
[334091285,1722759043265,-500.0,0.000199,2]
[334091286,1722759043275,-500.0,0.000199,2]
[334091287,1722759043285,-500.0,0.000199,2]
[334091289,1722759043296,-500.0,0.000199,2]
[334091290,1722759043306,-500.0,0.000199,2]
[334091291,1722759043316,-500.0,0.000199,2]
[334091292,1722759043326,-500.0,0.000199,2]
[334091293,1722759043337,-500.0,0.000199,2]
[334091295,1722759043347,-500.0,0.000199,2]
[334091296,1722759043357,-500.0,0.000199,2]
[334091297,1722759043366,-500.0,0.000199,2]
[334091298,1722759043377,-500.0,0.000199,2]
[334091299,1722759043387,-500.0,0.000199,2]
[334091300,1722759043397,-500.0,0.000199,2]
[334091301,1722759043407,-500.0,0.000199,2]
[334091302,1722759043417,-500.0,0.000199,2]
[334091303,1722759043427,-500.0,0.000199,2]
[334091305,1722759043438,-500.0,0.000199,2]
[334091307,1722759043448,-500.0,0.000199,2]
[334091309,1722759043458,-500.0,0.000199,2]
[334091311,1722759043468,-500.0,0.000199,2]
[334091313,1722759043478,-500.0,0.000199,2]
[334091315,1722759043488,-500.0,0.000199,2]
[334091317,1722759043498,-500.0,0.000199,2]
[334091319,1722759043508,-500.0,0.000199,2]
[334091321,1722759043518,-500.0,0.000199,2]
[334091323,1722759043528,-500.0,0.000199,2]
[334091325,1722759043539,-500.0,0.000199,2]
[334091327,1722759043549,-500.0,0.000199,2]
[334091328,1722759043559,-500.0,0.000199,2]
[334091329,1722759043569,-500.0,0.000199,2]
[334091331,1722759043579,-500.0,0.000199,2]
[334091333,1722759043589,-500.0,0.000199,2]
[334091334,1722759043599,-500.0,0.000199,2]
[334091335,1722759043609,-500.0,0.000199,2]
[334091336,1722759043619,-500.0,0.000199,2]
[334091337,1722759043629,-500.0,0.000199,2]
[334091338,1722759043639,-500.0,0.000199,2]
[334091339,1722759043649,-500.0,0.000199,2]
[334091340,1722759043659,-500.0,0.000199,2]
[334091341,1722759043669,-500.0,0.000199,2]
[334091342,1722759043679,-500.0,0.000199,2]
[334091343,1722759043689,-500.0,0.000199,2]
[334091344,1722759043698,-500.0,0.000199,2]
[334091345,1722759043708,-500.0,0.000199,2]
[334091346,1722759043718,-500.0,0.000199,2]
[334091347,1722759043727,-500.0,0.000199,2]
[334091348,1722759043737,-500.0,0.000199,2]
[334091349,1722759043747,-500.0,0.000199,2]
[334091350,1722759043757,-500.0,0.000199,2]
[334091351,1722759043767,-500.0,0.000199,2]
[334091352,1722759043778,-500.0,0.000199,2]
[334091354,1722759043787,-500.0,0.000199,2]
[334091356,1722759043798,-500.0,0.000199,2]
[334091358,1722759043808,-500.0,0.000199,2]
[334091360,1722759043818,-500.0,0.000199,2]
[334091361,1722759043828,-500.0,0.000199,2]
[334091362,1722759043838,-500.0,0.000199,2]
[334091363,1722759043848,-500.0,0.000199,2]
[334091364,1722759043858,-500.0,0.000199,2]
[334091365,1722759043868,-500.0,0.000199,2]
[334091366,1722759043878,-500.0,0.000199,2]
[334091367,1722759043888,-500.0,0.000199,2]
[334091368,1722759043900,-500.0,0.000199,2]
[334091369,1722759043912,-500.0,0.000199,2]
[334091370,1722759043922,-500.0,0.000199,2]
[334091371,1722759043932,-500.0,0.000199,2]
[334091372,1722759043942,-500.0,0.000199,2]
[334091373,1722759043953,-500.0,0.000199,2]
[334091374,1722759043963,-500.0,0.000199,2]
[334091375,1722759043972,-500.0,0.000199,2]
[334091376,1722759043982,-500.0,0.000199,2]
[334091377,1722759043994,-500.0,0.000199,2]
[334091378,1722759044004,-500.0,0.000199,2]
[334091379,1722759044013,-500.0,0.000199,2]
[334091380,1722759044024,-500.0,0.000199,2]
[334091381,1722759044035,-500.0,0.000199,2]
[334091382,1722759044045,-500.0,0.000199,2]
[334091383,1722759044055,-500.0,0.000199,2]
[334091384,1722759044065,-500.0,0.000199,2]
[334091385,1722759044075,-500.0,0.000199,2]
[334091386,1722759044085,-500.0,0.000199,2]
[334091387,1722759044095,-500.0,0.000199,2]
[334091388,1722759044105,-500.0,0.000199,2]
[334091389,1722759044114,-500.0,0.000199,2]
[334091390,1722759044124,-500.0,0.000199,2]
[334091391,1722759044134,-500.0,0.000199,2]
[334091392,1722759044144,-500.0,0.000199,2]
[334091393,1722759044154,-500.0,0.000199,2]
[334091394,1722759044164,-500.0,0.000199,2]
[334091395,1722759044175,-500.0,0.000199,2]
[334091396,1722759044185,-500.0,0.000199,2]
[334091397,1722759044195,-500.0,0.000199,2]
[334091398,1722759044206,-500.0,0.000199,2]
[334091399,1722759044216,-500.0,0.000199,2]
[334091400,1722759044226,-500.0,0.000199,2]
[334091401,1722759044236,-500.0,0.000199,2]
[334091402,1722759044246,-500.0,0.000199,2]
[334091403,1722759044256,-500.0,0.000199,2]
[334091404,1722759044266,-500.0,0.000199,2]
[334091405,1722759044276,-500.0,0.000199,2]
[334091406,1722759044286,-500.0,0.000199,2]
[334091407,1722759044295,-500.0,0.000199,2]
[334091408,1722759044305,-500.0,0.000199,2]
[334091409,1722759044315,-500.0,0.000199,2]
[334091410,1722759044326,-500.0,0.000199,2]
[334091411,1722759044336,-500.0,0.000199,2]
[334091412,1722759044346,-500.0,0.000199,2]
[334091413,1722759044366,-500.0,0.000199,2]
[334091414,1722759044376,-500.0,0.000199,2]
[334091415,1722759044386,-500.0,0.000199,2]
[334091416,1722759044396,-500.0,0.000199,2]
[334091417,1722759044406,-500.0,0.000199,2]
[334091418,1722759044418,-500.0,0.000199,2]
[334091419,1722759044427,-500.0,0.000199,2]
[334091420,1722759044437,-500.0,0.000199,2]
[334091421,1722759044449,-500.0,0.000199,2]
[334091422,1722759044460,-500.0,0.000199,2]
[334091423,1722759044470,-500.0,0.000199,2]
[334091424,1722759044480,-300.0,0.00019919,2]
[334091425,1722759044490,-150.0,0.00019937,4]
[334091426,1722759044500,-185.99,0.00019955,2]
[334091427,1722759044510,-12938.8070375,0.0001999,3]
[334091428,1722759044520,-759.86827843,0.00019999,2]
[334091429,1722759044531,-309.05361967,0.00019999,2]
[334091430,1722759044541,-535.57210001,0.00019999,2]
[334091431,1722759044551,-2502.178346,0.0002,7]
[334091432,1722759044561,-5000.0,0.0002,7]
[334091433,1722759044572,-2993.26505,0.0002,2]
[334091434,1722759044583,-4773.23601219,0.0002,2]
[334091435,1722759044593,-155.0,0.0002,2]
[334091436,1722759044604,-167.0,0.00020047,2]
[334091437,1722759044614,-500.0,0.0002005,2]
[334091438,1722759044624,-328.00522683,0.00020109,2]
[334091439,1722759044635,-718.31999166,0.00020109,2]
[334091440,1722759044645,-454.49541237,0.00020109,2]
[334091441,1722759044655,-500.0,0.00020118,2]
[334091442,1722759044666,-1184.1001296,0.0002012,2]
[334091443,1722759044676,-547.40182525,0.0002012,2]
[334091444,1722759044688,-500.0,0.00020139,2]
[334091445,1722759044700,-500.0,0.0002014,2]
[334091446,1722759044711,-500.0,0.0002016,2]
[334091447,1722759044721,-500.0,0.00020165,2]
[334091448,1722759044731,-12938.8070375,0.00020181,3]
[334091449,1722759044742,-700.0,0.00020189,2]
[334091450,1722759044752,-370.30384095,0.00020191,2]
[334091451,1722759044763,-155.0,0.00020191,2]
[334091452,1722759044773,-155.0,0.00020191,2]
[334091453,1722759044784,-1863.72559606,0.00020222,2]
[334091454,1722759044794,-500.0,0.00020249,2]
[334091455,1722759044804,-150.0,0.00020287,4]
[334091456,1722759044814,-8871.93532941,0.00020367,2]
[334091457,1722759044824,-12938.8070375,0.0002037,3]
[334091458,1722759044835,-700.0,0.00020418,2]
[334091459,1722759044845,-500.0,0.00020425,2]
[334091460,1722759044855,-355.79848032,0.00020433,2]
[334091461,1722759044865,-306.57963143,0.00020439,2]
[334091462,1722759044875,-306.57963143,0.00020439,2]
[334091463,1722759044885,-350.19,0.00020447,2]
[334091464,1722759045144,-500.0,0.00020492,2]
[334091465,1722759045155,-500.0,0.00020503,2]
[334091466,1722759045165,-150.0,0.00020637,4]
[334091467,1722759045174,-500.0,0.00020665,2]
[334091468,1722759045184,-167.0,0.00020668,2]
[334091469,1722759045194,-5238.09,0.00020714,2]
[334091470,1722759045204,-500.0,0.0002077,2]
[334091471,1722759045213,-500.0,0.00020771,2]
[334091472,1722759045222,-355.79848032,0.00020776,2]
[334091473,1722759045232,-25877.614075,0.0002085,3]
[334091474,1722759045242,-158.45495802,0.0002086,2]
[334091475,1722759045252,-90571.6492625,0.0002086,3]
[334091476,1722759045262,-49546.4322647,0.0002086,3]
[334091477,1722759045271,-165.42600709,0.00020867,2]
[334091478,1722759045281,-171.33787982,0.0002087,2]
[334091479,1722759045290,-51755.22815,0.0002087,3]
[334091480,1722759045300,-49546.4322647,0.0002087,3]
[334091481,1722759045310,-14140.1848,0.0002088,2]
[334091482,1722759045319,-86406.3951,0.0002088,2]
[334091483,1722759045329,-414.51752762,0.00020899,2]
[334091484,1722759045339,-494.0,0.000209,3]
[334091485,1722759045349,-256.0,0.000209,2]
[334091486,1722759045358,-16515.4774216,0.00020923,3]
[334091487,1722759045367,-12938.8070375,0.00020927,3]
[334091488,1722759045377,-8871.93532941,0.00020933,2]
[334091489,1722759045387,-25877.614075,0.0002095,3]
[334091490,1722759045396,-33030.9548432,0.0002095,3]
[334091491,1722759045405,-51755.22815,0.0002096,3]
[334091492,1722759045415,-49546.4322647,0.0002096,3]
[334091493,1722759045424,-82577.3871079,0.0002096,3]
[334091494,1722759045434,-16515.4774216,0.00020969,3]
[334091495,1722759045443,-49546.4322647,0.0002097,3]
[334091496,1722759045453,-66061.9096863,0.0002097,3]
[334091497,1722759045463,-541.7769264,0.00020975,2]
[334091498,1722759045472,-166.76886389,0.00020979,2]
[334091499,1722759045482,-2973.81021162,0.00020979,2]
[334091500,1722759045491,-105362.86278236,0.0002098,7]
[334091501,1722759045500,-516.0,0.0002098,2]
[334091502,1722759045510,-541.7769264,0.00020985,2]
[334091503,1722759045519,-182.5529236,0.00020985,2]
[334091504,1722759045528,-150.0,0.00020986,4]
[334091505,1722759045538,-151.0,0.00020999,2]
[334091506,1722759045547,-151.0,0.00020999,2]
[334091507,1722759045557,-151.0,0.00020999,2]
[334091508,1722759045566,-151.0,0.00020999,2]
[334091509,1722759045575,-257.542201,0.00020999,2]
[334091510,1722759045584,-257.542201,0.00020999,2]
[334091511,1722759045593,-434.166144,0.00020999,2]
[334091512,1722759045603,-225.625574,0.00020999,2]
[334091513,1722759045612,-434.166144,0.00020999,2]
[334091514,1722759045621,-251.789142,0.00020999,2]
[334091515,1722759045631,-151.0,0.00020999,2]
[334091516,1722759045641,-251.789142,0.00020999,2]
[334091517,1722759045650,-1333.277927,0.00020999,2]
[334091518,1722759045659,-1333.277927,0.00020999,2]
[334091519,1722759045669,-5410.009218,0.00020999,2]
[334091520,1722759045678,-5410.009218,0.00020999,2]
[334091521,1722759045687,-402.189588,0.00020999,2]
[334091522,1722759045698,-402.189588,0.00020999,2]
[334091523,1722759045707,-311.362838,0.00020999,2]
[334091524,1722759045717,-151.0,0.00020999,2]
[334091525,1722759045726,-311.362838,0.00020999,2]
[334091526,1722759045736,-1944.87184,0.00020999,2]
[334091527,1722759045746,-151.0,0.00020999,2]
[334091528,1722759045755,-1944.87184,0.00020999,2]
[334091529,1722759045765,-500000.0,0.00021,2]
[334091530,1722759045775,-1833.0617143,0.00021,22]
[334091531,1722759045785,-779.32318323,0.00021,2]
[334091532,1722759045797,-800.0,0.00021,2]
[334091533,1722759045807,-151.0,0.00021,2]
[334091534,1722759045816,-190.380223,0.00021,2]
[334091535,1722759045826,-190.380223,0.00021,2]
[334091536,1722759045836,-151.0,0.00021,2]
[334091537,1722759045845,-151.0,0.00021,2]
[334091538,1722759045855,-192.556546,0.00021,2]
[334091539,1722759045864,-14945.07,0.00021,2]
[334091540,1722759045874,-151.0,0.00021,2]
[334091541,1722759045884,-151.0,0.00021,2]
[334091542,1722759045893,-151.0,0.00021,2]
[334091543,1722759045903,-151.0,0.00021,2]
[334091544,1722759045914,-151.0,0.00021,2]
[334091545,1722759045925,-151.0,0.00021,2]
[334091546,1722759045935,-151.0,0.00021,2]
[334091547,1722759045944,-151.0,0.00021,2]
[334091548,1722759045955,-151.0,0.00021,2]
[334091549,1722759045964,-151.0,0.00021,2]
[334091550,1722759045974,-151.0,0.00021,2]
[334091551,1722759045984,-176.548273,0.00021,2]
[334091552,1722759045995,-151.0,0.00021,2]
[334091553,1722759046004,-151.0,0.00021,2]
[334091554,1722759046014,-151.0,0.00021,2]
[334091555,1722759046023,-151.0,0.00021,2]
[334091556,1722759046032,-151.0,0.00021,2]
[334091557,1722759046042,-151.0,0.00021,2]
[334091558,1722759046051,-151.0,0.00021,2]
[334091559,1722759046061,-257.542201,0.00021,2]
[334091560,1722759046071,-257.542201,0.00021,2]
[334091561,1722759046080,-434.166144,0.00021,2]
[334091562,1722759046090,-434.166144,0.00021,2]
[334091563,1722759046099,-251.789142,0.00021,2]
[334091564,1722759046108,-151.0,0.00021,2]
[334091565,1722759046119,-251.789142,0.00021,2]
[334091566,1722759046129,-1333.277927,0.00021,2]
[334091567,1722759046139,-1333.277927,0.00021,2]
[334091568,1722759046149,-5410.009218,0.00021,2]
[334091569,1722759046158,-5410.009218,0.00021,2]
[334091570,1722759046168,-402.189588,0.00021,2]
[334091571,1722759046178,-402.189588,0.00021,2]
[334091572,1722759046188,-311.362838,0.00021,2]
[334091573,1722759046197,-151.0,0.00021,2]
[334091574,1722759046206,-311.362838,0.00021,2]
[334091575,1722759046218,-1944.87184,0.00021,2]
[334091576,1722759046227,-151.0,0.00021,2]
[334091577,1722759046237,-151.0,0.00021,2]
[334091578,1722759046247,-1944.87184,0.00021,2]
[334091579,1722759046257,-500.0,0.00021033,2]
[334091580,1722759046267,-1613.0,0.00021078,2]
[334091581,1722759046277,-355.79848032,0.0002112,2]
[334091582,1722759046287,-500.0,0.00021156,2]
[334091583,1722759046296,-400.0,0.00021165,2]
[334091584,1722759046306,-500.0,0.00021169,2]
[334091585,1722759046315,-384.25401255,0.00021222,2]
[334091586,1722759046324,-500.0,0.0002124,2]
[334091587,1722759046334,-500.0,0.00021251,2]
[334091588,1722759046344,-167.0,0.00021289,2]
[334091589,1722759046353,-700.0,0.00021433,2]
[334091590,1722759046363,-200.0,0.00021436,2]
[334091591,1722759046373,-355.79848032,0.00021464,2]
[334091592,1722759046383,-8871.93532941,0.000215,2]
[334091593,1722759046394,-700.0,0.00021503,2]
[334091594,1722759046403,-305.45049021,0.00021655,2]
[334091596,1722759046413,-217.0,0.00021667,2]
[334091598,1722759046422,-500.0,0.00021671,2]
[334091600,1722759046432,-700.0,0.00021706,2]
[334091602,1722759046442,-500.0,0.00021775,2]
[334091604,1722759046451,-500.0,0.00021805,2]
[334091606,1722759046461,-355.79848032,0.00021807,2]
[334091608,1722759046470,-500.0,0.00021832,2]
[334091610,1722759046479,-500.0,0.0002187,2]
[334091612,1722759046489,-3750.0,0.000219,2]
[334091613,1722759046499,-1000.0,0.000219,2]
[334091615,1722759046509,-250.0,0.000219,2]
[334091617,1722759046519,-600.0,0.000219,2]
[334091619,1722759046528,-325.0,0.000219,2]
[334091621,1722759046538,-279.01983924,0.000219,2]
[334091623,1722759046547,-416.81216832,0.000219,2]
[334091624,1722759046557,-167.0,0.00021909,2]
[334091627,1722759046567,-642.46,0.00021918,2]
[334091630,1722759046576,-150.0,0.00021918,2]
[334091633,1722759046586,-165.61,0.00021918,2]
[334091636,1722759046596,-700.0,0.00021969,2]
[334091637,1722759046607,-541.7769264,0.00021985,2]
[334091638,1722759046617,-182.5529236,0.00021985,2]
[334091639,1722759046626,-182.5529236,0.00021985,2]
[334091640,1722759046635,-500.0,0.00021994,2]
[334091641,1722759046645,-139293.84954548,0.00022,11]
[334091643,1722759047011,-5314.22404625,0.00022,11]
[334091644,1722759047023,-395.87692167,0.00022,11]
[334091645,1722759047034,-22256.41329664,0.00022,11]
[334091646,1722759047339,-155.0,0.00019999,2]
[334091647,1722759047348,-1184.1001296,0.00019999,2]
[334091648,1722759047365,-414.51752762,0.00020899,2]
[334091649,1722759047374,-2063.497479,0.00021,2]
[334091650,1722759047384,-444833.25047211,0.00022,11]
[334091651,1722759047393,-795.45060808,0.00022,2]
[334091652,1722759047402,-1800.0,0.00022,23]
[334091653,1722759047415,-61505.33021516,0.00022,14]
[334091654,1722759047424,-151.0,0.00022,7]
[334091655,1722759047434,-151.0,0.00022,7]
[334091656,1722759047445,-151.0,0.00022,7]
[334091657,1722759047455,-616.184439,0.00022,7]
[334091658,1722759047464,-616.184439,0.00022,7]
[334091659,1722759047474,-210.595024,0.00022,7]
[334091660,1722759047483,-151.0,0.00022,7]
[334091661,1722759047492,-210.595024,0.00022,7]
[334091662,1722759047502,-190.380223,0.00022,7]
[334091663,1722759047511,-190.380223,0.00022,7]
[334091664,1722759047520,-151.0,0.00022,2]
[334091665,1722759047529,-151.0,0.00022,7]
[334091666,1722759047539,-2063.497479,0.00022,7]
[334091667,1722759047548,-8871.93532941,0.00022067,2]
[334091668,1722759047557,-500.0,0.00022084,2]
[334091669,1722759047566,-700.0,0.00022091,2]
[334091670,1722759047576,-14945.07,0.000221,7]
[334091671,1722759047585,-765.66,0.00022137,2]
[334091672,1722759047594,-348.92,0.00022137,2]
[334091673,1722759047603,-158.45495802,0.0002214,2]
[334091674,1722759047613,-700.0,0.00022148,2]
[334091675,1722759047622,-355.79848032,0.00022151,2]
[334091676,1722759047632,-185.99,0.00022219,2]
[334091677,1722759047641,-500.0,0.00022326,2]
[334091678,1722759047651,-500.0,0.00022382,2]
[334091679,1722759047660,-500.0,0.00022395,2]
[334091680,1722759047669,-500.0,0.00022407,2]
[334091681,1722759047679,-500.0,0.00022458,2]
[334091682,1722759047689,-500.0,0.00022473,2]
[334091683,1722759047699,-500.0,0.0002249,2]
[334091684,1722759047708,-355.79848032,0.00022495,2]
[334091685,1722759047717,-150.0,0.00022495,2]
[334091686,1722759047727,-500.0,0.00022514,2]
[334091687,1722759047736,-632.69,0.00022548,2]
[334091688,1722759047745,-425.96,0.00022548,2]
[334091689,1722759047755,-530.48,0.00022548,2]
[334091690,1722759047764,-286.7,0.00022548,2]
[334091691,1722759047773,-712.1,0.00022548,2]
[334091692,1722759047782,-301.58,0.00022548,2]
[334091693,1722759047791,-300.61,0.00022548,2]
[334091694,1722759047801,-150.0,0.00022548,2]
[334091695,1722759047810,-150.47,0.00022548,2]
[334091696,1722759047819,-530.48,0.00022548,2]
[334091697,1722759047828,-425.96,0.00022548,2]
[334091698,1722759047837,-150.0,0.00022548,2]
[334091699,1722759047846,-530.48,0.00022548,2]
[334091700,1722759047856,-150.0,0.00022548,2]
[334091701,1722759047866,-425.26,0.00022548,2]
[334091702,1722759047876,-528.06,0.00022548,2]
[334091703,1722759047885,-150.0,0.00022548,2]
[334091704,1722759047895,-150.0,0.00022548,2]
[334091705,1722759047905,-150.0,0.00022548,2]
[334091706,1722759047919,-150.0,0.00022548,2]
[334091707,1722759047928,-150.0,0.00022548,2]
[334091708,1722759047938,-150.0,0.00022548,2]
[334091709,1722759047947,-151.0,0.00022548,7]
[334091710,1722759047958,-151.0,0.00022548,7]
[334091711,1722759047967,-151.0,0.00022548,7]
[334091712,1722759047977,-151.0,0.00022548,7]